[Event "Titled Tuesday Blitz April 4 Early 2023"]
[White "Hoffmann, Asa"]
[Black "Pappelis, Dimitrios"]
[WhiteFideId "2001470"]
[BlackFideId "4215281"]
[WhiteElo "2117"]
[BlackElo "2104"]
[Result "0-1"]
[Round "03"]
[TimeControl "180+2"]
[Date "2023.04.04"]
[WhiteClock "0:00:30"]
[BlackClock "0:00:15"]

1. d4 {[%clk 0:02:31]}  d5 {[%clk 0:02:52]} 2. Bg5 {[%clk 0:02:30]}  c5 {[%clk 0:02:45]} 3. dxc5 {[%clk 0:02:29]}  Nc6 {[%clk 0:02:39]} 4. c3 {[%clk 0:02:28]}  f6 {[%clk 0:02:32]} 5. Bh4 {[%clk 0:02:28]}  e5 {[%clk 0:02:32]} 6. b4 {[%clk 0:02:24]}  Be6 {[%clk 0:02:29]} 7. e3 {[%clk 0:02:22]}  Nh6 {[%clk 0:02:18]} 8. Nf3 {[%clk 0:02:18]}  Nf5 {[%clk 0:02:17]} 9. Bg3 {[%clk 0:02:18]}  h5 {[%clk 0:02:13]} 10. h4 {[%clk 0:02:10]}  Nxg3 {[%clk 0:02:12]} 11. fxg3 {[%clk 0:02:10]}  a5 {[%clk 0:02:00]} 12. b5 {[%clk 0:01:54]}  Ne7 {[%clk 0:01:51]} 13. Nbd2 {[%clk 0:01:50]}  Nf5 {[%clk 0:01:44]} 14. Bd3 {[%clk 0:01:29]}  Bxc5 {[%clk 0:01:31]} 15. Bxf5 {[%clk 0:01:25]}  Bxf5 {[%clk 0:01:32]} 16. Qe2 {[%clk 0:01:25]}  Qb6 {[%clk 0:01:26]} 17. Kf2 {[%clk 0:01:22]}  Bg4 {[%clk 0:01:25]} 18. Rhe1 {[%clk 0:01:22]}  e4 {[%clk 0:01:22]} 19. a4 {[%clk 0:01:17]}  exf3 {[%clk 0:01:21]} 20. gxf3 {[%clk 0:01:17]}  Be6 {[%clk 0:01:20]} 21. Kg2 {[%clk 0:01:17]}  O-O {[%clk 0:01:12]} 22. f4 {[%clk 0:01:17]}  Bg4 {[%clk 0:01:11]} 23. Qd3 {[%clk 0:01:17]}  Rad8 {[%clk 0:01:07]} 24. Nb3 {[%clk 0:01:16]}  Rfe8 {[%clk 0:01:06]} 25. Rac1 {[%clk 0:01:10]}  Rxe3 {[%clk 0:01:01]} 26. Rxe3 {[%clk 0:01:06]}  Bxe3 {[%clk 0:01:01]} 27. Re1 {[%clk 0:01:01]}  Bc5 {[%clk 0:00:55]} 28. Qg6 {[%clk 0:00:57]}  Bf8 {[%clk 0:00:30]} 29. Qd3 {[%clk 0:00:53]}  Qc7 {[%clk 0:00:25]} 30. Nd4 {[%clk 0:00:52]}  Qc4 {[%clk 0:00:25]} 31. Qd2 {[%clk 0:00:45]}  Bc5 {[%clk 0:00:21]} 32. Qe3 {[%clk 0:00:44]}  Bxd4 {[%clk 0:00:19]} 33. Qxd4 {[%clk 0:00:41]}  Qxd4 {[%clk 0:00:19]} 34. cxd4 {[%clk 0:00:41]}  Kf7 {[%clk 0:00:20]} 35. Rc1 {[%clk 0:00:41]}  Rc8 {[%clk 0:00:20]} 36. Rc5 {[%clk 0:00:39]}  Rxc5 {[%clk 0:00:20]} 37. dxc5 {[%clk 0:00:39]}  Ke7 {[%clk 0:00:20]} 38. Kf2 {[%clk 0:00:39]}  Kd7 {[%clk 0:00:18]} 39. Ke3 {[%clk 0:00:39]}  Bf5 {[%clk 0:00:18]} 40. Kd4 {[%clk 0:00:39]}  Be4 {[%clk 0:00:19]} 41. f5 {[%clk 0:00:39]}  Bxf5 {[%clk 0:00:18]} 42. Kxd5 {[%clk 0:00:39]}  Bc2 {[%clk 0:00:18]} 43. c6+ {[%clk 0:00:37]}  bxc6+ {[%clk 0:00:18]} 44. bxc6+ {[%clk 0:00:36]}  Kc7 {[%clk 0:00:17]} 45. Ke6 {[%clk 0:00:35]}  Bxa4 {[%clk 0:00:17]} 46. Kf7 {[%clk 0:00:35]}  Bxc6 {[%clk 0:00:18]} 47. Kxg7 {[%clk 0:00:35]}  a4 {[%clk 0:00:18]} 48. g4 {[%clk 0:00:35]}  hxg4 {[%clk 0:00:17]} 49. h5 {[%clk 0:00:35]}  Be4 {[%clk 0:00:17]} 50. Kxf6 {[%clk 0:00:34]}  a3 {[%clk 0:00:17]} 51. Ke5 {[%clk 0:00:34]}  a2 {[%clk 0:00:16]} 52. Kxe4 {[%clk 0:00:33]}  a1=Q {[%clk 0:00:17]} 53. Kf4 {[%clk 0:00:34]}  Qh8 {[%clk 0:00:16]} 54. Kxg4 {[%clk 0:00:33]}  Kd6 {[%clk 0:00:17]} 55. Kg5 {[%clk 0:00:34]}  Ke6 {[%clk 0:00:16]} 56. Kg6 {[%clk 0:00:34]}  Qe8+ {[%clk 0:00:13]} 57. Kh6 {[%clk 0:00:33]}  Kf7 {[%clk 0:00:13]} 58. Kg5 {[%clk 0:00:32]}  Kg7 {[%clk 0:00:13]} 59. h6+ {[%clk 0:00:32]}  Kh7 {[%clk 0:00:13]} 60. Kh4 {[%clk 0:00:32]}  Qg6 {[%clk 0:00:13]} 61. Kh3 {[%clk 0:00:31]}  Kxh6 {[%clk 0:00:13]} 62. Kh4 {[%clk 0:00:32]}  Kg7 {[%clk 0:00:14]} 63. Kh3 {[%clk 0:00:31]}  Kf6 {[%clk 0:00:15]} 64. Kh4 {[%clk 0:00:31]}  Kf5 {[%clk 0:00:16]} 65. Kh3 {[%clk 0:00:31]}  Kf4 {[%clk 0:00:16]} 66. Kh2 {[%clk 0:00:30]}  Kf3 {[%clk 0:00:16]} 67. Kh1 {[%clk 0:00:30]}  Qg2# {[%clk 0:00:15]} 0-1


[Site "https://www.chess.com"]

[Event "Titled Tuesday Blitz April 4 Early 2023"]
[White "Tarasova, Viktoriya"]
[Black "Ciuffoletti, Paolo"]
[WhiteFideId "4175840"]
[BlackFideId "807630"]
[WhiteElo "2182"]
[BlackElo "2143"]
[Result "1-0"]
[Round "03"]
[TimeControl "180+2"]
[Date "2023.04.04"]
[WhiteClock "0:00:27"]
[BlackClock "0:00:15"]

1. d4 {[%clk 0:02:57]}  d5 {[%clk 0:02:53]} 2. c4 {[%clk 0:02:56]}  c6 {[%clk 0:02:52]} 3. Nf3 {[%clk 0:02:57]}  Nf6 {[%clk 0:02:52]} 4. Nc3 {[%clk 0:02:57]}  dxc4 {[%clk 0:02:51]} 5. a4 {[%clk 0:02:57]}  e6 {[%clk 0:02:50]} 6. e3 {[%clk 0:02:47]}  c5 {[%clk 0:02:49]} 7. Bxc4 {[%clk 0:02:46]}  Nc6 {[%clk 0:02:49]} 8. O-O {[%clk 0:02:46]}  cxd4 {[%clk 0:02:48]} 9. Nxd4 {[%clk 0:02:46]}  Bd7 {[%clk 0:02:14]} 10. e4 {[%clk 0:02:32]}  Ne5 {[%clk 0:01:49]} 11. Be2 {[%clk 0:02:30]}  Bc5 {[%clk 0:01:30]} 12. Ndb5 {[%clk 0:02:28]}  O-O {[%clk 0:01:21]} 13. Bf4 {[%clk 0:02:10]}  Ng6 {[%clk 0:01:11]} 14. Bd6 {[%clk 0:02:09]}  Bxd6 {[%clk 0:01:08]} 15. Nxd6 {[%clk 0:02:08]}  Bc6 {[%clk 0:01:04]} 16. Qd2 {[%clk 0:01:42]}  Qe7 {[%clk 0:01:00]} 17. f4 {[%clk 0:01:40]}  e5 {[%clk 0:00:49]} 18. f5 {[%clk 0:01:03]}  Nf4 {[%clk 0:00:47]} 19. Rxf4 {[%clk 0:00:50]}  exf4 {[%clk 0:00:44]} 20. Qxf4 {[%clk 0:00:51]}  Rad8 {[%clk 0:00:24]} 21. e5 {[%clk 0:00:50]}  Nd5 {[%clk 0:00:15]} 22. Nxd5 {[%clk 0:00:49]}  Bxd5 {[%clk 0:00:15]} 23. f6 {[%clk 0:00:35]}  Qe6 {[%clk 0:00:15]} 24. Qg5 {[%clk 0:00:27]} 1-0


[Site "https://www.chess.com"]

[Event "Titled Tuesday Blitz April 4 Early 2023"]
[White "Manukian, Artak"]
[Black "Larina, Maria"]
[WhiteFideId "13301373"]
[BlackFideId "24113182"]
[WhiteElo "2130"]
[BlackElo "1848"]
[Result "1-0"]
[Round "03"]
[TimeControl "180+2"]
[Date "2023.04.04"]
[WhiteClock "0:00:38"]
[BlackClock "0:00:01"]

1. e4 {[%clk 0:02:58]}  c6 {[%clk 0:03:00]} 2. d4 {[%clk 0:02:57]}  d5 {[%clk 0:03:00]} 3. e5 {[%clk 0:02:57]}  Bf5 {[%clk 0:03:00]} 4. c4 {[%clk 0:02:53]}  e6 {[%clk 0:02:57]} 5. Nc3 {[%clk 0:02:52]}  h6 {[%clk 0:02:47]} 6. Nf3 {[%clk 0:02:51]}  Ne7 {[%clk 0:02:43]} 7. Qb3 {[%clk 0:02:49]}  Qb6 {[%clk 0:02:40]} 8. c5 {[%clk 0:02:48]}  Qc7 {[%clk 0:02:23]} 9. Bf4 {[%clk 0:02:47]}  g5 {[%clk 0:02:22]} 10. Bg3 {[%clk 0:02:47]}  Nd7 {[%clk 0:02:12]} 11. Be2 {[%clk 0:02:36]}  b6 {[%clk 0:01:59]} 12. cxb6 {[%clk 0:02:35]}  axb6 {[%clk 0:01:58]} 13. O-O {[%clk 0:02:33]}  Bg4 {[%clk 0:01:39]} 14. Rfc1 {[%clk 0:02:30]}  Qb7 {[%clk 0:01:31]} 15. h3 {[%clk 0:02:29]}  Bh5 {[%clk 0:01:29]} 16. Nd2 {[%clk 0:02:16]}  Bg6 {[%clk 0:01:16]} 17. f3 {[%clk 0:02:06]}  Nf5 {[%clk 0:01:14]} 18. Bf2 {[%clk 0:02:07]}  h5 {[%clk 0:01:01]} 19. a4 {[%clk 0:01:51]}  Rb8 {[%clk 0:00:46]} 20. Na2 {[%clk 0:01:47]}  g4 {[%clk 0:00:31]} 21. Nb4 {[%clk 0:01:42]}  Rc8 {[%clk 0:00:27]} 22. Nd3 {[%clk 0:01:36]}  gxh3 {[%clk 0:00:18]} 23. gxh3 {[%clk 0:01:35]}  h4 {[%clk 0:00:17]} 24. Nf4 {[%clk 0:01:29]}  Bh6 {[%clk 0:00:16]} 25. Nxg6 {[%clk 0:01:28]}  fxg6 {[%clk 0:00:17]} 26. Rc2 {[%clk 0:01:22]}  Bf4 {[%clk 0:00:15]} 27. Nf1 {[%clk 0:01:21]}  Kf7 {[%clk 0:00:14]} 28. a5 {[%clk 0:01:17]}  b5 {[%clk 0:00:13]} 29. Qa3 {[%clk 0:01:05]}  Ra8 {[%clk 0:00:12]} 30. b4 {[%clk 0:01:05]}  Ra6 {[%clk 0:00:12]} 31. Qd3 {[%clk 0:01:01]}  Qb8 {[%clk 0:00:11]} 32. Ne3 {[%clk 0:00:55]}  Nxe3 {[%clk 0:00:10]} 33. Bxe3 {[%clk 0:00:56]}  Bg3 {[%clk 0:00:07]} 34. Rac1 {[%clk 0:00:54]}  Qd8 {[%clk 0:00:06]} 35. Rxc6 {[%clk 0:00:50]}  Rxc6 {[%clk 0:00:07]} 36. Rxc6 {[%clk 0:00:51]}  Rh5 {[%clk 0:00:04]} 37. f4 {[%clk 0:00:48]}  Rf5 {[%clk 0:00:03]} 38. Bg4 {[%clk 0:00:47]}  Rxf4 {[%clk 0:00:03]} 39. Bxf4 {[%clk 0:00:46]}  Bxf4 {[%clk 0:00:04]} 40. a6 {[%clk 0:00:41]}  Nb8 {[%clk 0:00:02]} 41. Rxe6 {[%clk 0:00:38]}  Qc7 {[%clk 0:00:02]} 42. Rf6+ {[%clk 0:00:38]}  Kg7 {[%clk 0:00:02]} 43. Rxf4 {[%clk 0:00:39]}  Qc1+ {[%clk 0:00:02]} 44. Rf1 {[%clk 0:00:38]}  Qg5 {[%clk 0:00:02]} 45. Qf3 {[%clk 0:00:37]}  Qe7 {[%clk 0:00:01]} 46. Qf6+ {[%clk 0:00:36]}  Qxf6 {[%clk 0:00:01]} 47. exf6+ {[%clk 0:00:37]}  Kf7 {[%clk 0:00:02]} 48. a7 {[%clk 0:00:38]}  Nc6 {[%clk 0:00:01]} 1-0


[Site "https://www.chess.com"]

[Event "Titled Tuesday Blitz April 4 Early 2023"]
[White "Tuleyeva-Aketayeva, Dana"]
[Black "Ramirez Vido, Robert Yorisan"]
[WhiteFideId "13701932"]
[BlackFideId "3513823"]
[WhiteElo "2030"]
[BlackElo "2394"]
[Result "0-1"]
[Round "03"]
[TimeControl "180+2"]
[Date "2023.04.04"]
[WhiteClock "0:00:01"]
[BlackClock "0:01:09"]

1. d4 {[%clk 0:03:00]}  g6 {[%clk 0:02:59]} 2. Nf3 {[%clk 0:03:01]}  Nf6 {[%clk 0:03:00]} 3. g3 {[%clk 0:03:01]}  Bg7 {[%clk 0:03:00]} 4. Bg2 {[%clk 0:03:02]}  O-O {[%clk 0:03:00]} 5. O-O {[%clk 0:03:03]}  d6 {[%clk 0:02:59]} 6. c4 {[%clk 0:03:03]}  c5 {[%clk 0:02:59]} 7. dxc5 {[%clk 0:03:02]}  dxc5 {[%clk 0:02:59]} 8. Nc3 {[%clk 0:03:01]}  Nc6 {[%clk 0:02:58]} 9. Be3 {[%clk 0:02:55]}  Qa5 {[%clk 0:02:55]} 10. Qa4 {[%clk 0:02:53]}  Be6 {[%clk 0:02:53]} 11. Qxa5 {[%clk 0:02:45]}  Nxa5 {[%clk 0:02:53]} 12. Bxc5 {[%clk 0:02:45]}  Nxc4 {[%clk 0:02:52]} 13. Bxe7 {[%clk 0:02:43]}  Rfe8 {[%clk 0:02:51]} 14. Bc5 {[%clk 0:02:18]}  Nxb2 {[%clk 0:02:40]} 15. Ng5 {[%clk 0:02:12]}  Nd7 {[%clk 0:02:34]} 16. Nxe6 {[%clk 0:01:55]}  Bxc3 {[%clk 0:02:25]} 17. Rac1 {[%clk 0:01:45]}  Na4 {[%clk 0:02:12]} 18. Nc7 {[%clk 0:01:40]}  Ndxc5 {[%clk 0:02:12]} 19. Nxa8 {[%clk 0:01:28]}  Rxa8 {[%clk 0:02:13]} 20. Rb1 {[%clk 0:01:13]}  Rb8 {[%clk 0:02:02]} 21. Rfc1 {[%clk 0:01:04]}  b6 {[%clk 0:01:58]} 22. Bc6 {[%clk 0:01:00]}  Bf6 {[%clk 0:01:50]} 23. Bxa4 {[%clk 0:00:54]}  Nxa4 {[%clk 0:01:50]} 24. Rc4 {[%clk 0:00:54]}  Nc3 {[%clk 0:01:46]} 25. Rb3 {[%clk 0:00:42]}  Nxe2+ {[%clk 0:01:44]} 26. Kf1 {[%clk 0:00:35]}  Nd4 {[%clk 0:01:43]} 27. Rd3 {[%clk 0:00:28]}  Ne6 {[%clk 0:01:33]} 28. Rd7 {[%clk 0:00:20]}  a5 {[%clk 0:01:29]} 29. h4 {[%clk 0:00:10]}  b5 {[%clk 0:01:24]} 30. Rc6 {[%clk 0:00:06]}  h5 {[%clk 0:01:15]} 31. Ra6 {[%clk 0:00:06]}  Nc5 {[%clk 0:01:13]} 32. Rxf6 {[%clk 0:00:01]}  Nxd7 {[%clk 0:01:14]} 33. Rd6 {[%clk 0:00:01]}  Ne5 {[%clk 0:01:12]} 34. Rd5 {[%clk 0:00:01]}  Nc4 {[%clk 0:01:09]} 0-1


[Site "https://www.chess.com"]

[Event "Titled Tuesday Blitz April 4 Early 2023"]
[White "Ansh M Shah"]
[Black "Pirvulescu, Ekaterina"]
[WhiteFideId "25033379"]
[BlackFideId "13506374"]
[WhiteElo "2084"]
[BlackElo "2006"]
[Result "1/2-1/2"]
[Round "03"]
[TimeControl "180+2"]
[Date "2023.04.04"]
[WhiteClock "0:00:56"]
[BlackClock "0:00:18"]

1. d4 {[%clk 0:03:00]}  d6 {[%clk 0:02:58]} 2. c4 {[%clk 0:03:01]}  e5 {[%clk 0:02:57]} 3. dxe5 {[%clk 0:03:01]}  dxe5 {[%clk 0:02:57]} 4. Qxd8+ {[%clk 0:03:02]}  Kxd8 {[%clk 0:02:57]} 5. Nf3 {[%clk 0:03:03]}  f6 {[%clk 0:02:56]} 6. h4 {[%clk 0:03:03]}  Be6 {[%clk 0:02:56]} 7. Nc3 {[%clk 0:03:03]}  c6 {[%clk 0:02:57]} 8. b3 {[%clk 0:03:02]}  Nd7 {[%clk 0:02:54]} 9. h5 {[%clk 0:02:58]}  h6 {[%clk 0:02:45]} 10. Bd2 {[%clk 0:02:58]}  Ba3 {[%clk 0:02:40]} 11. Kd1 {[%clk 0:02:57]}  Ne7 {[%clk 0:02:39]} 12. Kc2 {[%clk 0:02:57]}  Nf5 {[%clk 0:02:38]} 13. e3 {[%clk 0:02:56]}  Ne7 {[%clk 0:02:16]} 14. Nh4 {[%clk 0:02:54]}  a5 {[%clk 0:02:09]} 15. Bd3 {[%clk 0:02:36]}  Kc7 {[%clk 0:02:07]} 16. Rad1 {[%clk 0:02:33]}  a4 {[%clk 0:02:07]} 17. Nxa4 {[%clk 0:02:33]}  Nc5 {[%clk 0:01:55]} 18. Nxc5 {[%clk 0:02:25]}  Bxc5 {[%clk 0:01:54]} 19. Ra1 {[%clk 0:02:15]}  Ra3 {[%clk 0:01:43]} 20. Bc1 {[%clk 0:02:15]}  Ra7 {[%clk 0:01:43]} 21. f3 {[%clk 0:02:00]}  Rha8 {[%clk 0:01:42]} 22. a4 {[%clk 0:02:00]}  Bb4 {[%clk 0:01:33]} 23. Bb2 {[%clk 0:01:59]}  Rd8 {[%clk 0:01:21]} 24. Rhd1 {[%clk 0:01:55]}  Raa8 {[%clk 0:01:21]} 25. g4 {[%clk 0:01:51]}  Rd7 {[%clk 0:01:19]} 26. Ng6 {[%clk 0:01:46]}  Nxg6 {[%clk 0:01:18]} 27. Bxg6 {[%clk 0:01:47]}  Rxd1 {[%clk 0:01:09]} 28. Rxd1 {[%clk 0:01:48]}  b5 {[%clk 0:01:02]} 29. cxb5 {[%clk 0:01:43]}  cxb5 {[%clk 0:01:02]} 30. axb5 {[%clk 0:01:42]}  Kb6 {[%clk 0:01:02]} 31. Bd3 {[%clk 0:01:40]}  Rc8+ {[%clk 0:00:56]} 32. Bc4 {[%clk 0:01:17]}  Bxc4 {[%clk 0:00:41]} 33. bxc4 {[%clk 0:01:18]}  Rxc4+ {[%clk 0:00:41]} 34. Kb3 {[%clk 0:01:19]}  Kxb5 {[%clk 0:00:41]} 35. Rd5+ {[%clk 0:01:17]}  Bc5 {[%clk 0:00:39]} 36. Rd7 {[%clk 0:01:16]}  Rb4+ {[%clk 0:00:36]} 37. Kc2 {[%clk 0:01:16]}  Bxe3 {[%clk 0:00:34]} 38. Rxg7 {[%clk 0:01:11]}  Bg5 {[%clk 0:00:30]} 39. Rb7+ {[%clk 0:01:06]}  Kc4 {[%clk 0:00:27]} 40. Rxb4+ {[%clk 0:01:07]}  Kxb4 {[%clk 0:00:27]} 41. Kd3 {[%clk 0:01:08]}  Kc5 {[%clk 0:00:21]} 42. Ke4 {[%clk 0:01:08]}  Kd6 {[%clk 0:00:20]} 43. Kf5 {[%clk 0:01:08]}  Kd5 {[%clk 0:00:19]} 44. Ba3 {[%clk 0:00:53]}  Kd4 {[%clk 0:00:18]} 45. Bf8 {[%clk 0:00:54]}  Ke3 {[%clk 0:00:17]} 46. Bxh6 {[%clk 0:00:54]}  Bxh6 {[%clk 0:00:17]} 47. Kxf6 {[%clk 0:00:55]}  Kxf3 {[%clk 0:00:16]} 48. g5 {[%clk 0:00:56]}  Bxg5+ {[%clk 0:00:15]} 49. Kxg5 {[%clk 0:00:57]}  e4 {[%clk 0:00:16]} 50. h6 {[%clk 0:00:58]}  e3 {[%clk 0:00:16]} 51. h7 {[%clk 0:00:59]}  e2 {[%clk 0:00:17]} 52. h8=Q {[%clk 0:00:59]}  e1=Q {[%clk 0:00:18]} 53. Qh3+ {[%clk 0:00:55]}  Qg3+ {[%clk 0:00:17]} 54. Qxg3+ {[%clk 0:00:56]}  Kxg3 {[%clk 0:00:18]} 1/2-1/2


[Site "https://www.chess.com"]

[Event "Titled Tuesday Blitz April 4 Early 2023"]
[White "Polanco Nunez, Yoel Estarling"]
[Black "hsd2016"]
[WhiteFideId "6401783"]
[WhiteElo "2132"]
[BlackElo "2027"]
[Result "1-0"]
[Round "03"]
[TimeControl "180+2"]
[Date "2023.04.04"]
[WhiteClock "0:02:21"]
[BlackClock "0:01:28"]

1. d4 {[%clk 0:02:47]}  d5 {[%clk 0:02:52]} 2. Nf3 {[%clk 0:02:47]}  Nf6 {[%clk 0:02:49]} 3. c4 {[%clk 0:02:46]}  c6 {[%clk 0:02:48]} 4. Qb3 {[%clk 0:02:43]}  dxc4 {[%clk 0:02:48]} 5. Qxc4 {[%clk 0:02:43]}  Nbd7 {[%clk 0:02:48]} 6. Nc3 {[%clk 0:02:39]}  e6 {[%clk 0:02:45]} 7. g3 {[%clk 0:02:37]}  Bd6 {[%clk 0:02:38]} 8. Bg2 {[%clk 0:02:34]}  e5 {[%clk 0:02:36]} 9. O-O {[%clk 0:02:27]}  e4 {[%clk 0:01:27]} 10. Ng5 {[%clk 0:02:22]}  Nb6 {[%clk 0:01:28]} 11. Qxf7# {[%clk 0:02:21]} 1-0


[Site "https://www.chess.com"]

[Event "Titled Tuesday Blitz April 4 Early 2023"]
[White "Singgih, Diajeng Theresa"]
[Black "Romero Ruscalleda, Josep"]
[WhiteFideId "7104391"]
[BlackFideId "2231859"]
[WhiteElo "1891"]
[BlackElo "2183"]
[Result "0-1"]
[Round "03"]
[TimeControl "180+2"]
[Date "2023.04.04"]
[WhiteClock "0:00:49"]
[BlackClock "0:00:59"]

1. e4 {[%clk 0:03:00]}  g6 {[%clk 0:03:00]} 2. d4 {[%clk 0:03:00]}  Bg7 {[%clk 0:03:01]} 3. f4 {[%clk 0:03:00]}  d6 {[%clk 0:03:01]} 4. Nf3 {[%clk 0:03:00]}  a6 {[%clk 0:03:01]} 5. Be3 {[%clk 0:03:00]}  Nc6 {[%clk 0:03:00]} 6. c3 {[%clk 0:02:55]}  Nf6 {[%clk 0:02:59]} 7. Bd3 {[%clk 0:02:55]}  O-O {[%clk 0:02:58]} 8. O-O {[%clk 0:02:55]}  Ng4 {[%clk 0:02:56]} 9. Bc1 {[%clk 0:02:53]}  e5 {[%clk 0:02:50]} 10. dxe5 {[%clk 0:02:30]}  dxe5 {[%clk 0:02:49]} 11. h3 {[%clk 0:02:20]}  Nf6 {[%clk 0:02:47]} 12. fxe5 {[%clk 0:02:15]}  Nd7 {[%clk 0:02:37]} 13. Bg5 {[%clk 0:02:14]}  Qe8 {[%clk 0:02:36]} 14. Nbd2 {[%clk 0:01:50]}  Ncxe5 {[%clk 0:02:35]} 15. Nxe5 {[%clk 0:01:49]}  Nxe5 {[%clk 0:02:28]} 16. Bc2 {[%clk 0:01:47]}  f6 {[%clk 0:02:19]} 17. Bf4 {[%clk 0:01:34]}  Be6 {[%clk 0:02:13]} 18. Nf3 {[%clk 0:01:33]}  Rd8 {[%clk 0:02:07]} 19. Qe1 {[%clk 0:01:30]}  Qb5 {[%clk 0:01:54]} 20. Bxe5 {[%clk 0:01:16]}  fxe5 {[%clk 0:01:51]} 21. Ng5 {[%clk 0:01:16]}  Bc4 {[%clk 0:01:42]} 22. Bb3 {[%clk 0:01:06]}  Bxb3 {[%clk 0:01:05]} 23. axb3 {[%clk 0:01:02]}  Bh6 {[%clk 0:01:00]} 24. Ne6 {[%clk 0:00:53]}  Qb6+ {[%clk 0:00:59]} 25. Kh1 {[%clk 0:00:49]}  Qxe6 {[%clk 0:00:59]} 0-1


[Site "https://www.chess.com"]

[Event "Titled Tuesday Blitz April 4 Early 2023"]
[White "Naroditsky, Daniel"]
[Black "Yeletsky, Ivan"]
[WhiteFideId "2026961"]
[BlackFideId "24180327"]
[WhiteElo "2633"]
[BlackElo "2422"]
[Result "1/2-1/2"]
[Round "04"]
[TimeControl "180+2"]
[Date "2023.04.04"]
[WhiteClock "0:00:04"]
[BlackClock "0:00:06"]

1. d4 {[%clk 0:03:00]}  Nf6 {[%clk 0:02:59]} 2. Nc3 {[%clk 0:03:01]}  d5 {[%clk 0:02:59]} 3. Bf4 {[%clk 0:03:01]}  e6 {[%clk 0:02:59]} 4. Nb5 {[%clk 0:03:01]}  Na6 {[%clk 0:02:59]} 5. e3 {[%clk 0:03:01]}  Be7 {[%clk 0:02:59]} 6. Nf3 {[%clk 0:03:01]}  O-O {[%clk 0:02:59]} 7. h4 {[%clk 0:03:01]}  Bd7 {[%clk 0:02:54]} 8. h5 {[%clk 0:02:56]}  c5 {[%clk 0:02:52]} 9. c3 {[%clk 0:02:51]}  h6 {[%clk 0:02:46]} 10. a4 {[%clk 0:02:49]}  Bxb5 {[%clk 0:02:23]} 11. axb5 {[%clk 0:02:18]}  Nc7 {[%clk 0:02:24]} 12. Qc2 {[%clk 0:01:54]}  c4 {[%clk 0:02:12]} 13. g4 {[%clk 0:01:54]}  Nxg4 {[%clk 0:02:12]} 14. Rg1 {[%clk 0:01:49]}  f5 {[%clk 0:02:12]} 15. Bh3 {[%clk 0:01:50]}  Bd6 {[%clk 0:01:55]} 16. Bxd6 {[%clk 0:01:33]}  Qxd6 {[%clk 0:01:56]} 17. Bxg4 {[%clk 0:01:33]}  fxg4 {[%clk 0:01:56]} 18. Ne5 {[%clk 0:01:34]}  Nxb5 {[%clk 0:01:48]} 19. Rxg4 {[%clk 0:01:32]}  Rf5 {[%clk 0:01:24]} 20. O-O-O {[%clk 0:01:32]}  Rc8 {[%clk 0:01:16]} 21. Rdg1 {[%clk 0:01:28]}  Rc7 {[%clk 0:01:16]} 22. f3 {[%clk 0:01:18]}  a6 {[%clk 0:01:00]} 23. Qg2 {[%clk 0:00:57]}  Qf8 {[%clk 0:00:55]} 24. Rg6 {[%clk 0:00:47]}  Rf6 {[%clk 0:00:48]} 25. Qg4 {[%clk 0:00:38]}  Nd6 {[%clk 0:00:45]} 26. Kb1 {[%clk 0:00:25]}  b5 {[%clk 0:00:44]} 27. e4 {[%clk 0:00:24]}  b4 {[%clk 0:00:37]} 28. exd5 {[%clk 0:00:23]}  exd5 {[%clk 0:00:37]} 29. Nd7 {[%clk 0:00:23]}  Rxg6 {[%clk 0:00:31]} 30. hxg6 {[%clk 0:00:20]}  Qf5+ {[%clk 0:00:32]} 31. Qxf5 {[%clk 0:00:19]}  Nxf5 {[%clk 0:00:33]} 32. Re1 {[%clk 0:00:15]}  Nd6 {[%clk 0:00:26]} 33. Re7 {[%clk 0:00:10]}  bxc3 {[%clk 0:00:15]} 34. Nf6+ {[%clk 0:00:05]}  gxf6 {[%clk 0:00:16]} 35. Rxc7 {[%clk 0:00:06]}  cxb2 {[%clk 0:00:14]} 36. Kxb2 {[%clk 0:00:07]}  Nb5 {[%clk 0:00:12]} 37. Rd7 {[%clk 0:00:05]}  c3+ {[%clk 0:00:11]} 38. Kc2 {[%clk 0:00:04]}  Nxd4+ {[%clk 0:00:12]} 39. Kxc3 {[%clk 0:00:03]}  Nxf3 {[%clk 0:00:12]} 40. Rxd5 {[%clk 0:00:02]}  Kg7 {[%clk 0:00:13]} 41. Ra5 {[%clk 0:00:01]}  Kxg6 {[%clk 0:00:12]} 42. Kd3 {[%clk 0:00:02]}  Ne5+ {[%clk 0:00:11]} 43. Ke4 {[%clk 0:00:02]}  Nd7 {[%clk 0:00:10]} 44. Kf4 {[%clk 0:00:01]}  h5 {[%clk 0:00:09]} 45. Rxa6 {[%clk 0:00:02]}  Nc5 {[%clk 0:00:08]} 46. Ra1 {[%clk 0:00:02]}  Nd3+ {[%clk 0:00:08]} 47. Kg3 {[%clk 0:00:03]}  Kg5 {[%clk 0:00:08]} 48. Rd1 {[%clk 0:00:03]}  h4+ {[%clk 0:00:08]} 49. Kf3 {[%clk 0:00:02]}  Ne5+ {[%clk 0:00:08]} 50. Kg2 {[%clk 0:00:03]}  Ng4 {[%clk 0:00:08]} 51. Rd4 {[%clk 0:00:02]}  f5 {[%clk 0:00:09]} 52. Kf3 {[%clk 0:00:02]}  Ne5+ {[%clk 0:00:08]} 53. Kg2 {[%clk 0:00:02]}  Ng6 {[%clk 0:00:08]} 54. Rd8 {[%clk 0:00:03]}  Nf4+ {[%clk 0:00:05]} 55. Kf3 {[%clk 0:00:03]}  Ng6 {[%clk 0:00:04]} 56. Rg8 {[%clk 0:00:03]}  Kf6 {[%clk 0:00:05]} 57. Ra8 {[%clk 0:00:03]}  Kg5 {[%clk 0:00:06]} 58. Rg8 {[%clk 0:00:03]}  Kf6 {[%clk 0:00:07]} 59. Ra8 {[%clk 0:00:04]}  Ne5+ {[%clk 0:00:07]} 60. Kf4 {[%clk 0:00:03]}  Nd3+ {[%clk 0:00:07]} 61. Ke3 {[%clk 0:00:04]}  Ne5 {[%clk 0:00:06]} 62. Kf4 {[%clk 0:00:04]}  Ng6+ {[%clk 0:00:06]} 63. Kf3 {[%clk 0:00:04]} 1/2-1/2


[Site "https://www.chess.com"]